[Event "Titled Tuesday Blitz February 22 Early 2022"]
[White "Terzi, Alexei"]
[Black "Martin, Lewis"]
[WhiteFideId "13505076"]
[BlackFideId "410551"]
[WhiteElo "2031"]
[BlackElo "2145"]
[Result "1-0"]
[Round "02"]
[TimeControl "180+1"]
[Date "2022.02.22"]
[WhiteClock "0:00:23"]
[BlackClock "0:00:09"]

1. e4 {[%clk 0:03:00]}  c5 {[%clk 0:02:59]} 2. Nc3 {[%clk 0:03:00]}  Nc6 {[%clk 0:02:59]} 3. Bb5 {[%clk 0:02:58]}  Nd4 {[%clk 0:02:58]} 4. Nf3 {[%clk 0:02:59]}  a6 {[%clk 0:02:55]} 5. Bc4 {[%clk 0:02:50]}  b5 {[%clk 0:02:37]} 6. Bd5 {[%clk 0:02:09]}  Rb8 {[%clk 0:02:37]} 7. Nxd4 {[%clk 0:02:09]}  cxd4 {[%clk 0:02:37]} 8. Ne2 {[%clk 0:02:09]}  Nf6 {[%clk 0:02:36]} 9. Nxd4 {[%clk 0:02:00]}  e6 {[%clk 0:02:29]} 10. Bb3 {[%clk 0:01:59]}  Nxe4 {[%clk 0:02:29]} 11. O-O {[%clk 0:01:59]}  Bc5 {[%clk 0:02:23]} 12. Nf3 {[%clk 0:01:44]}  O-O {[%clk 0:02:21]} 13. d4 {[%clk 0:01:44]}  Bb6 {[%clk 0:02:13]} 14. c3 {[%clk 0:01:42]}  Bb7 {[%clk 0:02:09]} 15. Bc2 {[%clk 0:01:41]}  f5 {[%clk 0:02:06]} 16. Re1 {[%clk 0:01:39]}  Bc7 {[%clk 0:01:58]} 17. h3 {[%clk 0:01:35]}  Qe8 {[%clk 0:01:46]} 18. Ne5 {[%clk 0:01:29]}  d6 {[%clk 0:01:40]} 19. Nd3 {[%clk 0:01:26]}  e5 {[%clk 0:01:26]} 20. dxe5 {[%clk 0:01:12]}  dxe5 {[%clk 0:01:27]} 21. f3 {[%clk 0:00:58]}  Ng3 {[%clk 0:01:07]} 22. Nc5 {[%clk 0:00:56]}  Bc6 {[%clk 0:01:00]} 23. Bb3+ {[%clk 0:00:56]}  Kh8 {[%clk 0:00:59]} 24. Ne6 {[%clk 0:00:49]}  Bb6+ {[%clk 0:00:58]} 25. Be3 {[%clk 0:00:48]}  Bxe3+ {[%clk 0:00:28]} 26. Rxe3 {[%clk 0:00:49]}  e4 {[%clk 0:00:20]} 27. Nxf8 {[%clk 0:00:45]}  Qxf8 {[%clk 0:00:19]} 28. f4 {[%clk 0:00:45]}  Qc5 {[%clk 0:00:19]} 29. Qd4 {[%clk 0:00:37]}  Qxd4 {[%clk 0:00:17]} 30. cxd4 {[%clk 0:00:37]}  Nh5 {[%clk 0:00:17]} 31. g3 {[%clk 0:00:34]}  Nf6 {[%clk 0:00:17]} 32. Rc1 {[%clk 0:00:34]}  Bd5 {[%clk 0:00:17]} 33. Rc5 {[%clk 0:00:31]}  Rd8 {[%clk 0:00:15]} 34. Rec3 {[%clk 0:00:30]}  Bxb3 {[%clk 0:00:15]} 35. axb3 {[%clk 0:00:31]}  Kg8 {[%clk 0:00:13]} 36. Rc8 {[%clk 0:00:31]}  Rxc8 {[%clk 0:00:13]} 37. Rxc8+ {[%clk 0:00:31]}  Kf7 {[%clk 0:00:14]} 38. Rc6 {[%clk 0:00:30]}  a5 {[%clk 0:00:12]} 39. Rb6 {[%clk 0:00:29]}  b4 {[%clk 0:00:12]} 40. Rb5 {[%clk 0:00:29]}  e3 {[%clk 0:00:11]} 41. Kg2 {[%clk 0:00:26]}  Ne4 {[%clk 0:00:12]} 42. Kf3 {[%clk 0:00:25]}  Ke6 {[%clk 0:00:09]} 43. Rxa5 {[%clk 0:00:24]}  Nd2+ {[%clk 0:00:08]} 44. Kxe3 {[%clk 0:00:23]}  Nxb3 {[%clk 0:00:09]} 45. Re5+ {[%clk 0:00:23]}  Kf6 {[%clk 0:00:09]} 46. Rb5 {[%clk 0:00:23]} 1-0


[Site "https://www.chess.com"]

[Event "Titled Tuesday Blitz February 22 Early 2022"]
[White "Thomas, Anysia"]
[Black "Kozin, Yuri"]
[WhiteFideId "670472"]
[BlackFideId "4129920"]
[WhiteElo "2002"]
[BlackElo "2562"]
[Result "0-1"]
[Round "02"]
[TimeControl "180+1"]
[Date "2022.02.22"]
[WhiteClock "0:00:01"]
[BlackClock "0:00:11"]

1. d4 {[%clk 0:02:58]}  d5 {[%clk 0:02:51]} 2. c4 {[%clk 0:02:57]}  c6 {[%clk 0:02:50]} 3. Nf3 {[%clk 0:02:57]}  Nf6 {[%clk 0:02:48]} 4. e3 {[%clk 0:02:57]}  Bf5 {[%clk 0:02:48]} 5. Nc3 {[%clk 0:02:56]}  e6 {[%clk 0:02:48]} 6. Nh4 {[%clk 0:02:55]}  Be4 {[%clk 0:02:49]} 7. Qb3 {[%clk 0:02:52]}  Qb6 {[%clk 0:02:37]} 8. f3 {[%clk 0:02:50]}  Bg6 {[%clk 0:02:37]} 9. Nxg6 {[%clk 0:02:47]}  hxg6 {[%clk 0:02:38]} 10. Bd2 {[%clk 0:02:43]}  Nbd7 {[%clk 0:02:37]} 11. Be2 {[%clk 0:02:04]}  Qc7 {[%clk 0:02:33]} 12. O-O-O {[%clk 0:01:48]}  dxc4 {[%clk 0:02:30]} 13. Bxc4 {[%clk 0:01:47]}  Be7 {[%clk 0:02:22]} 14. g3 {[%clk 0:01:40]}  b5 {[%clk 0:02:21]} 15. Bxe6 {[%clk 0:01:21]}  fxe6 {[%clk 0:02:18]} 16. Qxe6 {[%clk 0:01:22]}  Qd6 {[%clk 0:02:15]} 17. Qb3 {[%clk 0:01:15]}  a5 {[%clk 0:02:07]} 18. Ne4 {[%clk 0:01:09]}  Nxe4 {[%clk 0:02:04]} 19. fxe4 {[%clk 0:01:10]}  a4 {[%clk 0:02:04]} 20. Qd3 {[%clk 0:01:08]}  O-O-O {[%clk 0:01:52]} 21. Kb1 {[%clk 0:01:03]}  Kb7 {[%clk 0:01:52]} 22. Rc1 {[%clk 0:01:03]}  Nb6 {[%clk 0:01:46]} 23. e5 {[%clk 0:00:59]}  Qxe5 {[%clk 0:01:38]} 24. Qxg6 {[%clk 0:00:56]}  Qf6 {[%clk 0:01:39]} 25. Qe4 {[%clk 0:00:54]}  Qd6 {[%clk 0:01:30]} 26. Rhf1 {[%clk 0:00:49]}  Rxh2 {[%clk 0:01:23]} 27. Ba5 {[%clk 0:00:35]}  Bf6 {[%clk 0:01:15]} 28. Rf5 {[%clk 0:00:15]}  Rd7 {[%clk 0:00:21]} 29. Rxb5 {[%clk 0:00:15]}  Bd8 {[%clk 0:00:21]} 30. Rbc5 {[%clk 0:00:12]}  Rh6 {[%clk 0:00:18]} 31. Qg2 {[%clk 0:00:08]}  Nd5 {[%clk 0:00:17]} 32. Qc2 {[%clk 0:00:07]}  Bxa5 {[%clk 0:00:16]} 33. Qxa4 {[%clk 0:00:07]}  Bb6 {[%clk 0:00:14]} 34. R5c2 {[%clk 0:00:04]}  Qb4 {[%clk 0:00:11]} 35. Qxb4 {[%clk 0:00:01]}  Nxb4 {[%clk 0:00:11]} 36. Rc4 {[%clk 0:00:01]}  Nd5 {[%clk 0:00:11]} 0-1


[Site "https://www.chess.com"]

[Event "Titled Tuesday Blitz February 22 Early 2022"]
[White "Todorovic, Bojan"]
[Black "Al Hosani, Omran"]
[WhiteFideId "917087"]
[BlackFideId "9308733"]
[WhiteElo "2266"]
[BlackElo "2246"]
[Result "1-0"]
[Round "02"]
[TimeControl "180+1"]
[Date "2022.02.22"]
[WhiteClock "0:01:07"]
[BlackClock "0:00:20"]

1. Nf3 {[%clk 0:02:59]}  d5 {[%clk 0:02:41]} 2. c4 {[%clk 0:02:58]}  d4 {[%clk 0:02:40]} 3. b4 {[%clk 0:02:58]}  c5 {[%clk 0:02:39]} 4. e3 {[%clk 0:02:56]}  Nf6 {[%clk 0:02:11]} 5. Bb2 {[%clk 0:02:45]}  dxe3 {[%clk 0:01:58]} 6. fxe3 {[%clk 0:02:43]}  cxb4 {[%clk 0:01:59]} 7. d4 {[%clk 0:02:42]}  e6 {[%clk 0:01:59]} 8. Bd3 {[%clk 0:02:41]}  Be7 {[%clk 0:01:57]} 9. Nbd2 {[%clk 0:02:41]}  O-O {[%clk 0:01:57]} 10. O-O {[%clk 0:02:41]}  Nc6 {[%clk 0:01:50]} 11. e4 {[%clk 0:02:38]}  e5 {[%clk 0:01:22]} 12. d5 {[%clk 0:02:36]}  Bg4 {[%clk 0:01:00]} 13. h3 {[%clk 0:02:30]}  Bc5+ {[%clk 0:00:47]} 14. Kh1 {[%clk 0:02:29]}  Bxf3 {[%clk 0:00:48]} 15. Nxf3 {[%clk 0:02:28]}  Nd4 {[%clk 0:00:48]} 16. Nxd4 {[%clk 0:02:12]}  exd4 {[%clk 0:00:49]} 17. e5 {[%clk 0:02:10]}  Nd7 {[%clk 0:00:43]} 18. Bxh7+ {[%clk 0:01:50]}  Kxh7 {[%clk 0:00:43]} 19. Qh5+ {[%clk 0:01:50]}  Kg8 {[%clk 0:00:43]} 20. Rf4 {[%clk 0:01:50]}  g6 {[%clk 0:00:28]} 21. Qh6 {[%clk 0:01:43]}  Be7 {[%clk 0:00:28]} 22. e6 {[%clk 0:01:28]}  Ne5 {[%clk 0:00:25]} 23. exf7+ {[%clk 0:01:12]}  Rxf7 {[%clk 0:00:24]} 24. Rxf7 {[%clk 0:01:11]}  Kxf7 {[%clk 0:00:24]} 25. Bxd4 {[%clk 0:01:10]}  Qxd5 {[%clk 0:00:20]} 26. cxd5 {[%clk 0:01:07]} 1-0


[Site "https://www.chess.com"]

[Event "Titled Tuesday Blitz February 22 Early 2022"]
[White "Tologon tegin, Semetei"]
[Black "Nesterov, Arseniy"]
[WhiteFideId "13800574"]
[BlackFideId "24198455"]
[WhiteElo "2258"]
[BlackElo "2489"]
[Result "1/2-1/2"]
[Round "02"]
[TimeControl "180+1"]
[Date "2022.02.22"]
[WhiteClock "0:00:09"]
[BlackClock "0:00:06"]

1. e4 {[%clk 0:02:46]}  e5 {[%clk 0:02:59]} 2. Nc3 {[%clk 0:02:45]}  Nf6 {[%clk 0:02:56]} 3. Bc4 {[%clk 0:02:45]}  Nc6 {[%clk 0:02:55]} 4. d3 {[%clk 0:02:44]}  Na5 {[%clk 0:02:54]} 5. Nge2 {[%clk 0:02:23]}  d6 {[%clk 0:02:40]} 6. O-O {[%clk 0:02:19]}  Be7 {[%clk 0:02:38]} 7. h3 {[%clk 0:02:19]}  O-O {[%clk 0:02:37]} 8. Be3 {[%clk 0:02:16]}  h6 {[%clk 0:02:31]} 9. Ng3 {[%clk 0:02:12]}  Nxc4 {[%clk 0:02:29]} 10. dxc4 {[%clk 0:02:12]}  Be6 {[%clk 0:02:29]} 11. b3 {[%clk 0:02:11]}  b6 {[%clk 0:02:26]} 12. Qd2 {[%clk 0:02:06]}  Kh7 {[%clk 0:02:25]} 13. Rad1 {[%clk 0:02:05]}  a5 {[%clk 0:02:06]} 14. a4 {[%clk 0:02:01]}  Ng8 {[%clk 0:01:40]} 15. Nf5 {[%clk 0:01:36]}  Bg5 {[%clk 0:01:29]} 16. f4 {[%clk 0:01:36]}  exf4 {[%clk 0:01:27]} 17. Bxf4 {[%clk 0:01:35]}  Bxf5 {[%clk 0:01:15]} 18. exf5 {[%clk 0:01:33]}  Bxf4 {[%clk 0:01:13]} 19. Rxf4 {[%clk 0:01:20]}  Nf6 {[%clk 0:01:11]} 20. g4 {[%clk 0:00:53]}  Re8 {[%clk 0:01:03]} 21. Qd3 {[%clk 0:00:43]}  Kg8 {[%clk 0:00:53]} 22. Rf3 {[%clk 0:00:35]}  Nd7 {[%clk 0:00:50]} 23. Qd2 {[%clk 0:00:25]}  Ne5 {[%clk 0:00:44]} 24. Re3 {[%clk 0:00:24]}  Qg5 {[%clk 0:00:35]} 25. Qf2 {[%clk 0:00:23]}  h5 {[%clk 0:00:22]} 26. Ne4 {[%clk 0:00:23]}  Qd8 {[%clk 0:00:15]} 27. f6 {[%clk 0:00:22]}  hxg4 {[%clk 0:00:11]} 28. hxg4 {[%clk 0:00:19]}  Nxg4 {[%clk 0:00:08]} 29. Qg2 {[%clk 0:00:17]}  Nxf6 {[%clk 0:00:06]} 30. Rg3 {[%clk 0:00:11]}  Nh5 {[%clk 0:00:03]} 31. Rg5 {[%clk 0:00:10]}  Rxe4 {[%clk 0:00:02]} 32. Rxh5 {[%clk 0:00:09]}  Re6 {[%clk 0:00:02]} 33. Rg5 {[%clk 0:00:08]}  Qxg5 {[%clk 0:00:02]} 34. Qxg5 {[%clk 0:00:08]}  Rg6 {[%clk 0:00:03]} 35. Qxg6 {[%clk 0:00:08]}  fxg6 {[%clk 0:00:04]} 36. Re1 {[%clk 0:00:09]}  Kf7 {[%clk 0:00:04]} 37. Rf1+ {[%clk 0:00:09]}  Ke6 {[%clk 0:00:04]} 38. Re1+ {[%clk 0:00:10]}  Kd7 {[%clk 0:00:05]} 39. Rf1 {[%clk 0:00:10]}  Re8 {[%clk 0:00:05]} 40. Rf2 {[%clk 0:00:09]}  Re6 {[%clk 0:00:05]} 41. Kg2 {[%clk 0:00:09]}  Rf6 {[%clk 0:00:05]} 42. Re2 {[%clk 0:00:09]}  Rf5 {[%clk 0:00:05]} 43. Kg3 {[%clk 0:00:10]}  g5 {[%clk 0:00:05]} 44. Kg4 {[%clk 0:00:09]}  Re5 {[%clk 0:00:05]} 45. Rh2 {[%clk 0:00:10]}  Ke7 {[%clk 0:00:05]} 46. Rh8 {[%clk 0:00:09]}  Kf7 {[%clk 0:00:04]} 47. Rc8 {[%clk 0:00:09]}  Rc5 {[%clk 0:00:04]} 48. Rd8 {[%clk 0:00:09]}  Kg6 {[%clk 0:00:05]} 49. Rd7 {[%clk 0:00:09]}  Kf6 {[%clk 0:00:04]} 50. Kg3 {[%clk 0:00:08]}  g6 {[%clk 0:00:04]} 51. Kg4 {[%clk 0:00:08]}  Rc6 {[%clk 0:00:05]} 52. Kg3 {[%clk 0:00:09]}  Rc5 {[%clk 0:00:05]} 53. Kg4 {[%clk 0:00:09]}  Re5 {[%clk 0:00:05]} 54. Rxc7 {[%clk 0:00:09]}  Re2 {[%clk 0:00:05]} 55. Rc6 {[%clk 0:00:09]}  Ke5 {[%clk 0:00:04]} 56. Rxb6 {[%clk 0:00:09]}  Rxc2 {[%clk 0:00:04]} 57. Rb5+ {[%clk 0:00:10]}  Kf6 {[%clk 0:00:05]} 58. Rxa5 {[%clk 0:00:10]}  Rb2 {[%clk 0:00:05]} 59. Ra6 {[%clk 0:00:10]}  Rxb3 {[%clk 0:00:05]} 60. Rxd6+ {[%clk 0:00:10]}  Ke5 {[%clk 0:00:06]} 61. Rd5+ {[%clk 0:00:10]}  Ke4 {[%clk 0:00:06]} 62. a5 {[%clk 0:00:10]}  Rb4 {[%clk 0:00:06]} 63. Rc5 {[%clk 0:00:10]}  Kd4 {[%clk 0:00:06]} 64. Rxg5 {[%clk 0:00:08]}  Kxc4 {[%clk 0:00:05]} 65. a6 {[%clk 0:00:08]}  Ra4 {[%clk 0:00:05]} 66. Rxg6 {[%clk 0:00:08]}  Kb5+ {[%clk 0:00:05]} 67. Kf5 {[%clk 0:00:09]}  Rxa6 {[%clk 0:00:06]} 68. Rxa6 {[%clk 0:00:09]}  Kxa6 {[%clk 0:00:06]} 1/2-1/2


[Site "https://www.chess.com"]

[Event "Titled Tuesday Blitz February 22 Early 2022"]
[White "Tomiello, Mateus Costamilan"]
[Black "Kobo, Ori"]
[WhiteFideId "22701958"]
[BlackFideId "2812320"]
[WhiteElo "1975"]
[BlackElo "2420"]
[Result "0-1"]
[Round "02"]
[TimeControl "180+1"]
[Date "2022.02.22"]
[WhiteClock "0:00:01"]
[BlackClock "0:00:06"]

1. e4 {[%clk 0:03:00]}  c5 {[%clk 0:02:59]} 2. Nf3 {[%clk 0:03:00]}  e6 {[%clk 0:03:00]} 3. d4 {[%clk 0:02:59]}  cxd4 {[%clk 0:03:01]} 4. Nxd4 {[%clk 0:02:59]}  a6 {[%clk 0:03:01]} 5. c4 {[%clk 0:02:58]}  Nf6 {[%clk 0:02:59]} 6. Nc3 {[%clk 0:02:59]}  Qc7 {[%clk 0:02:52]} 7. Be2 {[%clk 0:02:56]}  Bb4 {[%clk 0:02:49]} 8. Nc2 {[%clk 0:02:57]}  Be7 {[%clk 0:02:42]} 9. O-O {[%clk 0:02:51]}  b6 {[%clk 0:02:40]} 10. Be3 {[%clk 0:02:33]}  d6 {[%clk 0:02:36]} 11. Rc1 {[%clk 0:02:27]}  Bb7 {[%clk 0:02:36]} 12. f3 {[%clk 0:02:26]}  Nbd7 {[%clk 0:02:36]} 13. Qd2 {[%clk 0:02:25]}  Rc8 {[%clk 0:02:34]} 14. Rfd1 {[%clk 0:02:25]}  O-O {[%clk 0:02:32]} 15. Nd4 {[%clk 0:02:19]}  Rfe8 {[%clk 0:02:27]} 16. Bf1 {[%clk 0:02:13]}  Qb8 {[%clk 0:02:25]} 17. Qf2 {[%clk 0:02:13]}  Bf8 {[%clk 0:02:23]} 18. Nde2 {[%clk 0:02:05]}  Ba8 {[%clk 0:02:20]} 19. b3 {[%clk 0:02:01]}  b5 {[%clk 0:02:16]} 20. cxb5 {[%clk 0:01:56]}  axb5 {[%clk 0:02:17]} 21. b4 {[%clk 0:01:30]}  Ne5 {[%clk 0:02:08]} 22. Nd4 {[%clk 0:01:24]}  Nc4 {[%clk 0:02:03]} 23. Ncxb5 {[%clk 0:01:12]}  Nxe3 {[%clk 0:02:01]} 24. Qxe3 {[%clk 0:01:12]}  d5 {[%clk 0:01:54]} 25. e5 {[%clk 0:01:11]}  Nd7 {[%clk 0:01:54]} 26. f4 {[%clk 0:01:04]}  Rxc1 {[%clk 0:01:38]} 27. Rxc1 {[%clk 0:01:03]}  Bxb4 {[%clk 0:01:38]} 28. Nc7 {[%clk 0:00:37]}  Bc5 {[%clk 0:00:45]} 29. Nxe8 {[%clk 0:00:33]}  Qxe8 {[%clk 0:00:46]} 30. Bb5 {[%clk 0:00:26]}  Bb6 {[%clk 0:00:36]} 31. Bxd7 {[%clk 0:00:24]}  Qxd7 {[%clk 0:00:37]} 32. Qc3 {[%clk 0:00:25]}  Bb7 {[%clk 0:00:29]} 33. Kh1 {[%clk 0:00:21]}  h6 {[%clk 0:00:16]} 34. Qb4 {[%clk 0:00:21]}  Bxd4 {[%clk 0:00:07]} 35. Qxd4 {[%clk 0:00:21]}  Ba6 {[%clk 0:00:07]} 36. Qb6 {[%clk 0:00:18]}  Bc4 {[%clk 0:00:06]} 37. Qb8+ {[%clk 0:00:15]}  Kh7 {[%clk 0:00:06]} 38. Qb1+ {[%clk 0:00:14]}  g6 {[%clk 0:00:07]} 39. Qb2 {[%clk 0:00:14]}  Qa4 {[%clk 0:00:06]} 40. a3 {[%clk 0:00:14]}  Kg7 {[%clk 0:00:06]} 41. Qb4 {[%clk 0:00:13]}  Qa7 {[%clk 0:00:06]} 42. a4 {[%clk 0:00:11]}  Qe3 {[%clk 0:00:06]} 43. Rg1 {[%clk 0:00:10]}  Qxf4 {[%clk 0:00:05]} 44. Qc3 {[%clk 0:00:06]}  Qe4 {[%clk 0:00:03]} 45. a5 {[%clk 0:00:06]}  Ba6 {[%clk 0:00:03]} 46. Qc5 {[%clk 0:00:06]}  Qd3 {[%clk 0:00:04]} 47. Qb6 {[%clk 0:00:06]}  d4 {[%clk 0:00:04]} 48. Qd8 {[%clk 0:00:05]}  Qf5 {[%clk 0:00:03]} 49. Qb6 {[%clk 0:00:03]}  Bc8 {[%clk 0:00:02]} 50. Qxd4 {[%clk 0:00:03]}  Ba6 {[%clk 0:00:03]} 51. Qb4 {[%clk 0:00:03]}  Bd3 {[%clk 0:00:03]} 52. Re1 {[%clk 0:00:04]}  Ba6 {[%clk 0:00:02]} 53. Qd4 {[%clk 0:00:04]}  Qc2 {[%clk 0:00:03]} 54. h3 {[%clk 0:00:04]}  Bb7 {[%clk 0:00:03]} 55. Rg1 {[%clk 0:00:04]}  Qc6 {[%clk 0:00:03]} 56. Qb6 {[%clk 0:00:04]}  Qd5 {[%clk 0:00:03]} 57. a6 {[%clk 0:00:04]}  Ba8 {[%clk 0:00:04]} 58. a7 {[%clk 0:00:05]}  Qe4 {[%clk 0:00:04]} 59. Qb8 {[%clk 0:00:05]}  h5 {[%clk 0:00:05]} 60. Qd6 {[%clk 0:00:04]}  Qf5 {[%clk 0:00:05]} 61. Kh2 {[%clk 0:00:03]}  Qf4+ {[%clk 0:00:05]} 62. Kh1 {[%clk 0:00:03]}  Qg3 {[%clk 0:00:05]} 63. Qd2 {[%clk 0:00:01]}  Qxh3# {[%clk 0:00:06]} 0-1


[Site "https://www.chess.com"]

[Event "Titled Tuesday Blitz February 22 Early 2022"]
[White "Urazayev, Arystanbek"]
[Black "Dziththauly, Ramadhan"]
[WhiteFideId "13709810"]
[BlackFideId "7105525"]
[WhiteElo "2321"]
[BlackElo "2586"]
[Result "1-0"]
[Round "02"]
[TimeControl "180+1"]
[Date "2022.02.22"]
[WhiteClock "0:02:42"]
[BlackClock "0:02:16"]

1. e4 {[%clk 0:03:00]}  c5 {[%clk 0:03:00]} 2. Nf3 {[%clk 0:03:01]}  d6 {[%clk 0:03:00]} 3. d4 {[%clk 0:03:02]}  cxd4 {[%clk 0:03:00]} 4. Nxd4 {[%clk 0:03:02]}  Nf6 {[%clk 0:03:01]} 5. Nc3 {[%clk 0:03:03]}  a6 {[%clk 0:03:01]} 6. Rg1 {[%clk 0:03:04]}  e5 {[%clk 0:03:00]} 7. Nb3 {[%clk 0:03:04]}  h5 {[%clk 0:03:00]} 8. h3 {[%clk 0:03:04]}  Be6 {[%clk 0:03:01]} 9. g4 {[%clk 0:03:05]}  hxg4 {[%clk 0:03:01]} 10. hxg4 {[%clk 0:03:06]}  Nc6 {[%clk 0:03:01]} 11. g5 {[%clk 0:03:06]}  Nd7 {[%clk 0:03:01]} 12. g6 {[%clk 0:03:07]}  f6 {[%clk 0:03:01]} 13. Be3 {[%clk 0:03:07]}  Be7 {[%clk 0:03:02]} 14. Nd5 {[%clk 0:03:05]}  b5 {[%clk 0:02:54]} 15. a4 {[%clk 0:03:04]}  b4 {[%clk 0:02:53]} 16. Bc4 {[%clk 0:03:04]}  Qc8 {[%clk 0:02:47]} 17. Nxe7 {[%clk 0:02:52]}  Kxe7 {[%clk 0:02:45]} 18. Bxe6 {[%clk 0:02:53]}  Kxe6 {[%clk 0:02:46]} 19. Qd5+ {[%clk 0:02:53]}  Ke7 {[%clk 0:02:46]} 20. Qf7+ {[%clk 0:02:54]}  Kd8 {[%clk 0:02:47]} 21. Qxg7 {[%clk 0:02:54]}  Kc7 {[%clk 0:02:46]} 22. O-O-O {[%clk 0:02:50]}  Qg8 {[%clk 0:02:34]} 23. Bb6+ {[%clk 0:02:42]}  Kxb6 {[%clk 0:02:28]} 24. Qxd7 {[%clk 0:02:42]}  Rd8 {[%clk 0:02:26]} 25. a5+ {[%clk 0:02:42]}  Nxa5 {[%clk 0:02:16]} 26. Rxd6+ {[%clk 0:02:42]} 1-0


[Site "https://www.chess.com"]

[Event "Titled Tuesday Blitz February 22 Early 2022"]
[White "Van Foreest, Jorden"]
[Black "Tregubov, Pavel V."]
[WhiteFideId "1039784"]
[BlackFideId "4115341"]
[WhiteElo "2609"]
[BlackElo "2341"]
[Result "1-0"]
[Round "02"]
[TimeControl "180+1"]
[Date "2022.02.22"]
[WhiteClock "0:00:35"]
[BlackClock "0:00:01"]

1. e4 {[%clk 0:02:36]}  e6 {[%clk 0:02:42]} 2. d4 {[%clk 0:02:36]}  d5 {[%clk 0:02:43]} 3. Nd2 {[%clk 0:02:37]}  c5 {[%clk 0:02:42]} 4. exd5 {[%clk 0:02:37]}  exd5 {[%clk 0:02:41]} 5. Ngf3 {[%clk 0:02:36]}  Nc6 {[%clk 0:02:41]} 6. Bb5 {[%clk 0:02:36]}  Qe7+ {[%clk 0:02:42]} 7. Be2 {[%clk 0:02:35]}  Qc7 {[%clk 0:02:41]} 8. O-O {[%clk 0:02:34]}  Nf6 {[%clk 0:02:41]} 9. dxc5 {[%clk 0:02:34]}  Bxc5 {[%clk 0:02:41]} 10. Nb3 {[%clk 0:02:34]}  Be7 {[%clk 0:02:39]} 11. h3 {[%clk 0:02:33]}  O-O {[%clk 0:02:39]} 12. c3 {[%clk 0:02:32]}  Bf5 {[%clk 0:02:38]} 13. Bd3 {[%clk 0:02:30]}  Be4 {[%clk 0:02:37]} 14. Re1 {[%clk 0:02:29]}  Rfe8 {[%clk 0:02:32]} 15. Bg5 {[%clk 0:02:26]}  Rad8 {[%clk 0:02:12]} 16. Nbd4 {[%clk 0:02:20]}  a6 {[%clk 0:01:57]} 17. Qd2 {[%clk 0:02:18]}  Na5 {[%clk 0:01:48]} 18. Nf5 {[%clk 0:02:05]}  Bxf5 {[%clk 0:01:39]} 19. Bxf5 {[%clk 0:02:04]}  Nc4 {[%clk 0:01:39]} 20. Qc2 {[%clk 0:02:04]}  h6 {[%clk 0:01:26]} 21. Bh4 {[%clk 0:02:00]}  Ne4 {[%clk 0:01:24]} 22. Bxe4 {[%clk 0:01:56]}  dxe4 {[%clk 0:01:21]} 23. Rxe4 {[%clk 0:01:52]}  Bxh4 {[%clk 0:01:21]} 24. Rxh4 {[%clk 0:01:48]}  b5 {[%clk 0:01:20]} 25. Rd4 {[%clk 0:01:45]}  Rxd4 {[%clk 0:01:15]} 26. Nxd4 {[%clk 0:01:46]}  Qe5 {[%clk 0:01:12]} 27. Rd1 {[%clk 0:01:41]}  Qf6 {[%clk 0:01:09]} 28. Nf3 {[%clk 0:01:36]}  a5 {[%clk 0:01:05]} 29. Rd5 {[%clk 0:01:32]}  Qc6 {[%clk 0:00:53]} 30. Rd1 {[%clk 0:01:31]}  a4 {[%clk 0:00:49]} 31. b3 {[%clk 0:01:24]}  axb3 {[%clk 0:00:45]} 32. axb3 {[%clk 0:01:25]}  Nd6 {[%clk 0:00:44]} 33. Qd3 {[%clk 0:01:24]}  Ne4 {[%clk 0:00:43]} 34. Re1 {[%clk 0:01:23]}  f5 {[%clk 0:00:33]} 35. Nd4 {[%clk 0:01:19]}  Rd8 {[%clk 0:00:23]} 36. Nxf5 {[%clk 0:00:38]}  Rxd3 {[%clk 0:00:20]} 37. Ne7+ {[%clk 0:00:38]}  Kf8 {[%clk 0:00:20]} 38. Nxc6 {[%clk 0:00:39]}  Nxc3 {[%clk 0:00:20]} 39. Ne5 {[%clk 0:00:39]}  Rd5 {[%clk 0:00:11]} 40. h4 {[%clk 0:00:39]}  b4 {[%clk 0:00:09]} 41. h5 {[%clk 0:00:39]}  Nb5 {[%clk 0:00:07]} 42. g4 {[%clk 0:00:37]}  Nd4 {[%clk 0:00:06]} 43. Ng6+ {[%clk 0:00:38]}  Kf7 {[%clk 0:00:06]} 44. Re3 {[%clk 0:00:38]}  Rg5 {[%clk 0:00:04]} 45. f3 {[%clk 0:00:37]}  Rc5 {[%clk 0:00:04]} 46. Kg2 {[%clk 0:00:34]}  Rc3 {[%clk 0:00:04]} 47. Re4 {[%clk 0:00:35]}  Nxb3 {[%clk 0:00:01]} 48. Rxb4 {[%clk 0:00:35]}  Nd2 {[%clk 0:00:02]} 49. Rf4+ {[%clk 0:00:35]}  Ke6 {[%clk 0:00:01]} 50. Rf5 {[%clk 0:00:35]}  Nc4 {[%clk 0:00:01]} 51. Nf4+ {[%clk 0:00:35]} 1-0


[Site "https://www.chess.com"]

[Event "Titled Tuesday Blitz February 22 Early 2022"]
[White "Vine, Elzbieta"]
[Black "Popadic, Dragan"]
[WhiteFideId "1119320"]
[BlackFideId "913650"]
[WhiteElo "1879"]
[BlackElo "2199"]
[Result "1/2-1/2"]
[Round "02"]
[TimeControl "180+1"]
[Date "2022.02.22"]
[WhiteClock "0:00:03"]
[BlackClock "0:00:02"]

1. e4 {[%clk 0:02:50]}  c5 {[%clk 0:02:59]} 2. Nf3 {[%clk 0:02:49]}  Nc6 {[%clk 0:02:58]} 3. d4 {[%clk 0:02:46]}  cxd4 {[%clk 0:02:58]} 4. Nxd4 {[%clk 0:02:45]}  Nf6 {[%clk 0:02:57]} 5. Nc3 {[%clk 0:02:43]}  e5 {[%clk 0:02:57]} 6. Ndb5 {[%clk 0:02:41]}  d6 {[%clk 0:02:56]} 7. Bg5 {[%clk 0:02:40]}  a6 {[%clk 0:02:56]} 8. Na3 {[%clk 0:02:39]}  b5 {[%clk 0:02:56]} 9. Nd5 {[%clk 0:02:38]}  Be7 {[%clk 0:02:56]} 10. Bxf6 {[%clk 0:02:13]}  Bxf6 {[%clk 0:02:56]} 11. c4 {[%clk 0:02:08]}  O-O {[%clk 0:02:48]} 12. Bd3 {[%clk 0:01:59]}  b4 {[%clk 0:02:41]} 13. Nc2 {[%clk 0:01:56]}  Rb8 {[%clk 0:02:39]} 14. Nce3 {[%clk 0:01:41]}  Bg5 {[%clk 0:02:38]} 15. O-O {[%clk 0:01:40]}  Nd4 {[%clk 0:02:33]} 16. Nf5 {[%clk 0:01:27]}  Bxf5 {[%clk 0:02:12]} 17. exf5 {[%clk 0:01:26]}  a5 {[%clk 0:02:08]} 18. b3 {[%clk 0:01:22]}  Kh8 {[%clk 0:02:06]} 19. Qh5 {[%clk 0:01:21]}  Bf6 {[%clk 0:02:05]} 20. g4 {[%clk 0:01:11]}  h6 {[%clk 0:01:57]} 21. Kh1 {[%clk 0:01:09]}  a4 {[%clk 0:01:50]} 22. bxa4 {[%clk 0:01:05]}  b3 {[%clk 0:01:48]} 23. axb3 {[%clk 0:01:03]}  Rxb3 {[%clk 0:01:48]} 24. Rad1 {[%clk 0:01:00]}  Ra3 {[%clk 0:01:44]} 25. Rg1 {[%clk 0:00:55]}  Bg5 {[%clk 0:01:14]} 26. h4 {[%clk 0:00:49]}  Bxh4 {[%clk 0:00:40]} 27. f6 {[%clk 0:00:40]}  Bxf6 {[%clk 0:00:27]} 28. Qf5 {[%clk 0:00:29]}  Rxd3 {[%clk 0:00:22]} 29. Qxd3 {[%clk 0:00:24]}  Ne6 {[%clk 0:00:18]} 30. Nxf6 {[%clk 0:00:15]}  Qxf6 {[%clk 0:00:18]} 31. Qxd6 {[%clk 0:00:14]}  Ra8 {[%clk 0:00:11]} 32. Qc6 {[%clk 0:00:09]}  Rb8 {[%clk 0:00:08]} 33. a5 {[%clk 0:00:07]}  Qh4+ {[%clk 0:00:07]} 34. Kg2 {[%clk 0:00:07]}  Nf4+ {[%clk 0:00:06]} 35. Kf1 {[%clk 0:00:05]}  Qh3+ {[%clk 0:00:05]} 36. Ke1 {[%clk 0:00:04]}  Qc3+ {[%clk 0:00:02]} 37. Kf1 {[%clk 0:00:03]}  Qh3+ {[%clk 0:00:02]} 38. Ke1 {[%clk 0:00:03]}  Qc3+ {[%clk 0:00:02]} 39. Kf1 {[%clk 0:00:03]}  Qh3+ {[%clk 0:00:02]} 1/2-1/2


[Site "https://www.chess.com"]